lending/lending_fUSD_20260317
["ID","MTS","AMOUNT","RATE_DAILY","PERIOD"]
[408493410,1773751842468,-317.35782238,0.00014263,2]
[408493411,1773751842477,-396.0,0.00014277,2]
[408493412,1773751842487,-1000.0,0.00014321,2]
[408493413,1773751842496,-1000.0,0.00014321,2]
[408493414,1773751842506,-396.0,0.0001433,2]
[408493415,1773751842516,-445.96,0.00014344,2]
[408493416,1773751842524,-666.0,0.00014394,2]
[408493417,1773751842533,-160.0,0.00014406,7]
[408493418,1773751842542,-281.447594,0.00014406,7]
[408493419,1773751842552,-402.895188,0.00014406,7]
[408493420,1773751842561,-396.0,0.00014443,2]
[408493421,1773751842572,-445.97120635,0.00014452,2]
[408493422,1773751842583,-792.43,0.00014468,2]
[408493423,1773751842596,-250.692329,0.00014481,7]
[408493424,1773751842606,-167.96,0.00014489,2]
[408493425,1773751842616,-167.96,0.00014489,2]
[408493426,1773751842626,-13228.22650247,0.00014553,2]
[408493427,1773751842636,-736.0,0.00014598,2]
[408493428,1773751842646,-12716.56574217,0.00014599,2]
[408493429,1773751842657,-166.66,0.00014653,2]
[408493430,1773751842667,-396.0,0.00014715,2]
[408493431,1773751842676,-200.0,0.00014735,2]
[408493432,1773751842685,-792.43,0.00014742,2]
[408493433,1773751842694,-396.0,0.00014748,2]
[408493434,1773751842704,-1600.0,0.00014776,2]
[408493435,1773751842712,-167.96,0.00014779,2]
[408493436,1773751842722,-167.96,0.00014779,2]
[408493437,1773751842732,-2606.59693682,0.00014785,2]
[408493438,1773751842743,-1500.0,0.00014795,2]
[408493439,1773751842752,-253.74817323,0.00014795,2]
[408493440,1773751842765,-396.0,0.00014812,2]
[408493441,1773751842775,-500.0,0.0001484,2]
[408493442,1773751842784,-3292.0,0.00014842,2]
[408493443,1773751842793,-396.0,0.00014863,2]
[408493444,1773751842803,-500.0,0.00014868,2]
[408493445,1773751842815,-997.22925258,0.00014868,2]
[408493446,1773751842826,-774.44911707,0.00014878,2]
[408493447,1773751842835,-396.0,0.00014878,2]
[408493448,1773751842844,-396.0,0.00014891,2]
[408493449,1773751842854,-396.0,0.00014896,2]
[408493450,1773751842863,-396.0,0.0001492,2]
[408493451,1773751842872,-13228.22650247,0.00014944,2]
[408493452,1773751842881,-12716.56574217,0.0001495,2]
[408493453,1773751842890,-164.28,0.00014954,2]
[408493454,1773751842899,-396.0,0.00014973,2]
[408493455,1773751842909,-22859.25609986,0.00015,2]
[408493456,1773751842919,-250.0,0.00015,2]
[408493457,1773751842928,-396.0,0.00015013,2]
[408493458,1773751842936,-792.46,0.00015016,2]
[408493459,1773751842946,-164.78,0.00015093,2]
[408493460,1773751842955,-166.66,0.00015122,2]
[408493461,1773751842964,-585.07,0.00015126,2]
[408493462,1773751842973,-511.07243209,0.00015126,2]
[408493463,1773751842983,-343.50730924,0.00015126,2]
[408493464,1773751842992,-500.0,0.00015127,2]
[408493465,1773751843002,-666.0,0.00015127,2]
[408493466,1773751843011,-435.77,0.00015129,2]
[408493467,1773751843020,-396.0,0.00015129,2]
[408493469,1773751843030,-59786.34231119,0.0001513,2]
[408493470,1773751843039,-194.300613,0.0001513,2]
[408493471,1773751843048,-396.0,0.00015171,2]
[408493472,1773751843058,-396.0,0.00015186,2]
[408493473,1773751843067,-151.0,0.00015281,2]
[408493474,1773751843076,-200.0,0.00015283,2]
[408493475,1773751843085,-12716.56574217,0.00015301,2]
[408493476,1773751843095,-396.0,0.00015324,2]
[408493477,1773751843104,-13228.22650247,0.00015335,2]
[408493478,1773751843113,-2000.0,0.00015342,2]
[408493479,1773751843122,-130266.4245385,0.00015399,2]
[408493480,1773751843131,-161.0,0.000154,2]
[408493481,1773751843141,-2606.59693682,0.00015408,2]
[408493482,1773751843150,-158.95,0.00015412,2]
[408493483,1773751843159,-164.76,0.00015475,2]
[408493485,1773751843170,-4000.0,0.00015507,2]
[408493486,1773751843179,-2400.0,0.0001552,2]
[408493487,1773751843188,-500.0,0.00015542,2]
[408493488,1773751843198,-172.819584,0.00015552,2]
[408493489,1773751843207,-166.66,0.0001559,2]
[408493490,1773751843218,-12716.56574217,0.00015652,2]
[408493491,1773751843227,-442.17,0.00015702,2]
[408493492,1773751843236,-442.17,0.00015703,2]
[408493493,1773751843245,-442.17,0.00015704,2]
[408493494,1773751843255,-13228.22650247,0.00015726,2]
[408493495,1773751843264,-2400.0,0.00015735,2]
[408493496,1773751843273,-1526.25,0.00015753,2]
[408493497,1773751843283,-2000.0,0.00015787,2]
[408493498,1773751843292,-155.0,0.00015814,2]
[408493499,1773751843301,-1598.0,0.00015828,2]
[408493500,1773751843314,-204.04031347,0.00015831,2]
[408493501,1773751843324,-161.0,0.0001584,2]
[408493502,1773751843333,-316.0,0.0001588,2]
[408493503,1773751843342,-774.44911707,0.00015882,2]
[408493504,1773751843354,-2000.0,0.0001589,2]
[408493505,1773751843363,-2500.0,0.0001589,2]
[408493506,1773751843372,-4000.0,0.00015895,2]
[408493507,1773751843382,-1252.0,0.0001597,2]
[408493508,1773751843392,-164.78,0.00015999,2]
[408493509,1773751843401,-265180.9882292,0.00016,5]
[408493510,1773751843410,-151.0,0.00016,2]
[408493511,1773751843420,-151.0,0.00016,2]
[408493512,1773751843430,-293.190466,0.00016,2]
[408493513,1773751843439,-293.190466,0.00016,2]
[408493514,1773751843449,-293.190466,0.00016,2]
[408493515,1773751843458,-293.190466,0.00016,2]
[408493516,1773751843468,-12716.56574217,0.00016004,2]
[408493517,1773751843477,-164.28,0.00016022,2]
[408493518,1773751843486,-2606.59693682,0.00016031,2]
[408493519,1773751843495,-1599.124586,0.00016057,7]
[408493520,1773751843505,-166.66,0.00016058,2]
[408493521,1773751843513,-9999.99,0.00016116,2]
[408493522,1773751843523,-13228.22650247,0.00016118,2]
[408493523,1773751843533,-1538.0,0.00016148,2]
[408493524,1773751843542,-1538.0,0.00016148,2]
[408493525,1773751843551,-1538.0,0.00016148,2]
[408493526,1773751843560,-585.07,0.00016199,2]
[408493527,1773751843570,-1538.0,0.00016202,2]
[408493528,1773751843580,-2400.0,0.00016231,2]
[408493529,1773751843589,-1538.0,0.00016231,2]
[408493530,1773751843599,-1538.0,0.00016231,2]
[408493531,1773751843608,-2400.0,0.00016244,2]
[408493532,1773751843617,-1538.0,0.0001627,2]
[408493533,1773751843627,-4000.0,0.00016282,2]
[408493534,1773751843636,-158.95,0.00016306,2]
[408493535,1773751843646,-2400.0,0.00016324,2]
[408493536,1773751843656,-4609.0,0.00016326,2]
[408493537,1773751843666,-2052.514142,0.00016351,7]
[408493538,1773751843675,-12716.56574217,0.00016355,2]
[408493539,1773751843685,-161.0,0.0001636,2]
[408493540,1773751843694,-767.8556801,0.00016387,2]
[408493541,1773751843705,-2766.3996835,0.00016387,2]
[408493543,1773751843715,-513.138598,0.00016401,7]
[408493544,1773751843724,-1600.0,0.00016418,2]
[408493545,1773751843734,-916.06,0.00016438,2]
[408493546,1773751843744,-916.06,0.00016438,2]
[408493547,1773751843753,-916.06,0.00016438,2]
[408493548,1773751843762,-916.06,0.00016438,2]
[408493549,1773751843771,-916.06,0.00016438,2]
[408493550,1773751843780,-916.06,0.00016438,2]
[408493551,1773751843790,-916.06,0.00016438,2]
[408493552,1773751843799,-916.06,0.00016438,2]
[408493553,1773751843808,-916.06,0.00016438,2]
[408493554,1773751843817,-916.06,0.00016438,2]
[408493555,1773751843826,-916.06,0.00016438,2]
[408493556,1773751843836,-916.06,0.00016438,2]
[408493557,1773751843846,-916.06,0.00016438,2]
[408493558,1773751843855,-916.06,0.00016438,2]
[408493559,1773751843865,-916.06,0.00016438,2]
[408493560,1773751843874,-916.06,0.00016438,2]
[408493562,1773751843883,-916.06,0.00016438,2]
[408493564,1773751843892,-916.06,0.00016438,2]
[408493566,1773751843902,-916.06,0.00016438,2]
[408493567,1773751843911,-916.06,0.00016438,2]
[408493568,1773751843920,-916.06,0.00016438,2]
[408493569,1773751843929,-916.06,0.00016438,2]
[408493570,1773751843939,-916.06,0.00016438,2]
[408493571,1773751843949,-916.22905965,0.00016438,2]
[408493572,1773751843958,-491.0,0.00016438,2]
[408493573,1773751843968,-491.0,0.00016438,2]
[408493574,1773751843977,-491.0,0.00016438,2]
[408493575,1773751843986,-491.0,0.00016438,2]
[408493576,1773751843996,-491.0,0.00016438,2]
[408493577,1773751844005,-491.0,0.00016438,2]
[408493578,1773751844015,-491.0,0.00016438,2]
[408493579,1773751844024,-491.0,0.00016438,2]
[408493580,1773751844034,-491.0,0.00016438,2]
[408493581,1773751844043,-491.0,0.00016438,2]
[408493582,1773751844053,-491.0,0.00016438,2]
[408493583,1773751844062,-491.0,0.00016438,2]
[408493584,1773751844072,-491.0,0.00016438,2]
[408493585,1773751844082,-491.0,0.00016438,2]
[408493586,1773751844091,-491.0,0.00016438,2]
[408493587,1773751844101,-491.0,0.00016438,2]
[408493588,1773751844205,-491.0,0.00016438,2]
[408493589,1773751844228,-491.0,0.00016438,2]
[408493590,1773751844238,-491.0,0.00016438,2]
[408493591,1773751844248,-491.0,0.00016438,2]
[408493592,1773751844258,-491.0,0.00016438,2]
[408493593,1773751844267,-491.0,0.00016438,2]
[408493594,1773751844276,-491.0,0.00016438,2]
[408493595,1773751844286,-507.0,0.00016438,2]
[408493596,1773751844295,-782.14,0.00016438,2]
[408493597,1773751844305,-1526.25,0.00016438,2]
[408493598,1773751844318,-151.0,0.00016438,2]
[408493599,1773751844328,-151.0,0.00016438,2]
[408493600,1773751844337,-151.0,0.00016438,2]
[408493601,1773751844347,-151.0,0.00016438,2]
[408493602,1773751844358,-151.0,0.00016438,2]
[408493603,1773751844367,-151.0,0.00016438,2]
[408493604,1773751844376,-220.781997,0.00016438,2]
[408493605,1773751844385,-439.012276,0.00016438,2]
[408493606,1773751844394,-439.012276,0.00016438,2]
[408493607,1773751844404,-439.012276,0.00016438,2]
[408493608,1773751844413,-3000.0,0.00016438,2]
[408493609,1773751844423,-225.76209298,0.00016507,2]
[408493610,1773751844432,-13228.22650247,0.00016509,2]
[408493611,1773751844442,-166.66,0.00016526,2]
[408493612,1773751844451,-300.0,0.00016543,2]
[408493613,1773751844460,-300.0,0.00016543,2]
[408493614,1773751844469,-300.0,0.00016543,2]
[408493615,1773751844479,-300.0,0.00016543,2]
[408493616,1773751844488,-46925.1882747,0.00016544,2]
[408493617,1773751844497,-97645.3185215,0.00016544,2]
[408493618,1773751844506,-31741.5223526,0.00016544,2]
[408493619,1773751844516,-1538.0,0.00016551,2]
[408493620,1773751844526,-1415.0,0.0001659,2]
[408493621,1773751844536,-150.0,0.0001661,2]
[408493622,1773751844545,-150.0,0.0001661,2]
[408493623,1773751844555,-161.0,0.00016615,2]
[408493624,1773751844564,-161.0,0.0001665,2]
[408493625,1773751844573,-2400.0,0.0001665,2]
[408493626,1773751844582,-161.0,0.0001665,2]
[408493627,1773751844591,-2606.59693682,0.00016654,2]
[408493628,1773751844600,-1734.85319648,0.0001666,2]
[408493629,1773751844610,-1538.0,0.00016669,2]
[408493630,1773751844619,-4000.0,0.0001667,2]
[408493631,1773751844628,-151.0,0.0001667,2]
[408493632,1773751844638,-151.0,0.0001667,2]
[408493633,1773751844647,-151.0,0.0001667,2]
[408493634,1773751844656,-1062.62658138,0.00016689,5]
[408493635,1773751844666,-164.54,0.00016699,2]
[408493636,1773751844675,-223.54,0.00016699,2]
[408493637,1773751844684,-12716.56574217,0.00016706,2]
[408493638,1773751844693,-166.66,0.00016712,2]
[408493639,1773751844703,-1541.092185,0.00016755,7]
[408493640,1773751844712,-32242.81879917,0.00016774,2]
[408493641,1773751844722,-1538.0,0.00016788,2]
[408493642,1773751844731,-3511.0,0.00016806,2]
[408493643,1773751844740,-1344.0,0.00016806,2]
[408493644,1773751844749,-1044.0,0.00016806,2]
[408493645,1773751844758,-620.0,0.00016806,2]
[408493646,1773751844766,-1260.0,0.00016806,2]
[408493647,1773751844775,-3756.0,0.00016806,2]
[408493648,1773751844784,-414.0,0.00016806,2]
[408493649,1773751844793,-163.0,0.0001684,2]
[408493650,1773751844802,-1262.0,0.00016855,2]
[408493651,1773751844812,-161.0,0.00016871,2]
[408493652,1773751844821,-2400.0,0.00016883,2]
[408493653,1773751844830,-774.44911707,0.00016887,2]
[408493654,1773751844839,-585.07,0.00016888,2]
[408493655,1773751844848,-130266.4245385,0.00016895,2]
[408493656,1773751844858,-13228.22650247,0.000169,2]
[408493657,1773751844867,-439.012276,0.000169,2]
[408493658,1773751844876,-1538.0,0.0001694,2]
[408493659,1773751844885,-161.0,0.0001694,2]
[408493660,1773751844894,-171.3317608,0.00016941,2]
[408493661,1773751844903,-617.2672044,0.00016941,2]
[408493662,1773751844912,-2400.0,0.00016964,2]
[408493663,1773751844922,-161.0,0.0001697,2]
[408493664,1773751844931,-500.0,0.00016999,2]
[408493665,1773751844940,-300.0,0.00016999,2]
[408493666,1773751844949,-726.4646336,0.00016999,2]
[408493667,1773751844958,-300.0,0.00016999,2]
[408493668,1773751844967,-300.0,0.00016999,2]
[408493669,1773751844976,-300.0,0.00016999,2]
[408493670,1773751844985,-150.0,0.00017,2]
[408493671,1773751844994,-4154.96664146,0.00017,2]
[408493672,1773751845004,-150.0,0.00017,2]
[408493673,1773751845013,-14531.44705581,0.00017,2]
[408493674,1773751845022,-150.0,0.00017,2]
[408493675,1773751845031,-932.03077569,0.00017,2]
[408493676,1773751845042,-199730.67923963,0.00017,2]
[408493677,1773751845051,-300.0,0.00017,2]
[408493678,1773751845060,-151.0,0.00017,2]
[408493679,1773751845069,-151.0,0.00017,2]
[408493680,1773751845078,-151.0,0.00017,2]
[408493681,1773751845088,-151.0,0.00017,2]
[408493682,1773751845097,-151.0,0.00017,2]
[408493683,1773751845107,-293.190466,0.00017,2]
[408493684,1773751845116,-293.190466,0.00017,2]
[408493685,1773751845126,-293.190466,0.00017,2]
[408493686,1773751845135,-293.190466,0.00017,2]
[408493687,1773751845144,-164.78,0.00017005,2]
[408493688,1773751845154,-1538.0,0.00017042,2]
[408493689,1773751845163,-4000.0,0.00017058,2]
[408493690,1773751845173,-164.28,0.0001709,2]
[408493691,1773751845182,-500.0,0.00017099,2]
[408493692,1773751845191,-500.0,0.00017099,2]
[408493693,1773751845200,-500.0,0.00017099,2]
[408493694,1773751845210,-500.0,0.00017099,2]
[408493695,1773751845219,-500.0,0.00017099,2]
[408493696,1773751845228,-300.0,0.00017099,2]
[408493697,1773751845238,-300.0,0.00017099,2]
[408493698,1773751845247,-300.0,0.00017099,2]
[408493699,1773751845256,-310.9973565,0.00017099,2]
[408493700,1773751845265,-77652.04815017,0.000171,2]
[408493701,1773751845275,-1538.0,0.00017108,2]
[408493702,1773751845284,-264.0,0.00017115,7]
[408493703,1773751845292,-10470.4247747,0.00017133,2]
[408493704,1773751845301,-21787.6155594,0.00017133,2]
[408493705,1773751845314,-7082.4909659,0.00017133,2]
[408493706,1773751845323,-1538.0,0.00017166,2]
[408493707,1773751845333,-2400.0,0.0001717,2]
[408493708,1773751845342,-290.39862941,0.00017172,2]
[408493709,1773751845353,-11929.85647335,0.00017173,3]
[408493710,1773751845362,-25000.0,0.00017173,3]
[408493711,1773751845371,-25000.0,0.00017173,3]
[408493712,1773751845380,-1538.0,0.00017191,2]
[408493713,1773751845390,-829.26739,0.00017194,2]
[408493714,1773751845400,-150.0,0.00017199,7]
[408493715,1773751845409,-150.0,0.00017199,7]
[408493716,1773751845419,-158.0,0.00017199,7]
[408493717,1773751845429,-600.0,0.000172,2]
[408493718,1773751845448,-2400.0,0.00017204,2]
[408493719,1773751845459,-25000.0,0.00017204,3]
[408493720,1773751845470,-217.57397877,0.00017211,5]
[408493721,1773751845480,-300.0,0.00017212,2]
[408493722,1773751845491,-300.0,0.00017212,2]
[408493723,1773751845502,-385.0221004,0.00017212,2]
[408493724,1773751845512,-25000.0,0.00017213,3]
[408493725,1773751845521,-25000.0,0.00017213,3]
[408493726,1773751845530,-25000.0,0.00017213,3]
[408493727,1773751845540,-439.012276,0.00017213,2]
[408493728,1773751845550,-150.0,0.00017223,2]
[408493729,1773751845559,-196.0,0.00017223,2]
[408493730,1773751845568,-150.0,0.00017223,2]
[408493731,1773751845578,-188.0,0.00017223,2]
[408493732,1773751845588,-25000.0,0.00017232,3]
[408493733,1773751845598,-1538.0,0.00017255,2]
[408493734,1773751845608,-2400.0,0.00017255,2]
[408493735,1773751845618,-600.0,0.00017257,2]
[408493736,1773751845627,-200.0,0.00017261,7]
[408493737,1773751845637,-200.0,0.00017261,7]
[408493738,1773751845646,-200.0,0.00017261,7]
[408493739,1773751845656,-200.0,0.00017261,7]
[408493740,1773751845666,-266.0,0.00017261,7]
[408493741,1773751845676,-150.0,0.00017261,7]
[408493742,1773751845686,-298.0,0.00017261,7]
[408493743,1773751845696,-158.95,0.00017266,2]
[408493744,1773751845706,-2400.0,0.00017269,2]
[408493745,1773751845715,-1665.0,0.00017269,2]
[408493746,1773751845727,-2606.59693682,0.00017277,2]
[408493747,1773751845737,-500.0,0.00017284,2]
[408493748,1773751845747,-500.0,0.00017287,2]
[408493749,1773751845756,-1055.428478,0.00017287,7]
[408493750,1773751845766,-19557.0,0.00017288,2]
[408493751,1773751845775,-158.94732139,0.00017332,2]
[408493752,1773751845784,-291.0,0.00017351,2]
[408493753,1773751845794,-2000.0,0.00017366,2]
[408493754,1773751845803,-150.0,0.00017375,7]
[408493755,1773751845813,-150.0,0.00017375,7]
[408493756,1773751845822,-169.0,0.00017375,7]
[408493757,1773751845832,-163.0,0.00017399,2]
[408493758,1773751845841,-6626.62,0.00017405,2]
[408493759,1773751845851,-800.0,0.00017439,2]
[408493760,1773751845860,-501.22515758,0.0001747,2]
[408493761,1773751845870,-2129.0,0.00017475,2]
[408493762,1773751845879,-8888.0,0.00017485,2]
[408493763,1773751845888,-150.0,0.00017524,7]
[408493764,1773751845898,-183.0,0.00017524,7]
[408493765,1773751845907,-200.0,0.00017524,7]
[408493766,1773751845917,-200.0,0.00017524,7]
[408493767,1773751845926,-200.0,0.00017524,7]
[408493768,1773751845936,-200.0,0.00017524,7]
[408493769,1773751845945,-289.0,0.00017524,7]
[408493770,1773751845954,-339.0,0.00017524,7]
[408493771,1773751845964,-600.0,0.00017533,2]
[408493772,1773751845974,-500.0,0.0001757,2]
[408493773,1773751845987,-200.0,0.000177,6]
[408493774,1773751845996,-301.1433787,0.0001772,2]
[408493775,1773751846006,-327.0,0.0001779,7]
[408493776,1773751846016,-255.0,0.0001779,7]
[408493777,1773751846025,-200.0,0.000178,6]
[408493778,1773751846035,-800.0,0.00017808,2]
[408493779,1773751846045,-500.0,0.00017831,2]
[408493780,1773751846055,-585.07,0.00017845,2]
[408493781,1773751846064,-500.0,0.00017855,2]
[408493782,1773751846073,-774.44911707,0.00017891,2]
[408493784,1773751846082,-500.0,0.00017899,2]
[408493786,1773751846092,-500.0,0.00017899,2]
[408493788,1773751846101,-500.0,0.00017899,2]
[408493790,1773751846111,-500.0,0.00017899,2]
[408493791,1773751846120,-500.0,0.00017899,2]
[408493792,1773751846129,-500.0,0.00017899,2]
[408493793,1773751846139,-200.0,0.000179,6]
[408493794,1773751846148,-2606.59693682,0.000179,2]
[408493795,1773751846157,-1538.0,0.00017909,2]
[408493796,1773751846167,-1094.9413971,0.00017943,2]
[408493797,1773751846176,-6453.0,0.00017959,2]
[408493798,1773751846185,-400.0,0.0001797,2]
[408493799,1773751846195,-400.0,0.0001797,2]
[408493800,1773751846204,-640.53177805,0.00017988,2]
[408493801,1773751846213,-500.0,0.00017988,2]
[408493802,1773751846223,-507.45233421,0.00017988,2]
[408493803,1773751846232,-818.70006504,0.00017999,4]
[408493804,1773751846241,-19073.42594906,0.00017999,3]
[408493805,1773751846251,-1003.36793695,0.00017999,4]
[408493806,1773751846260,-500.0,0.00017999,2]
[408493807,1773751846269,-500.0,0.00017999,2]
[408493808,1773751846278,-500.0,0.00017999,2]
[408493809,1773751846288,-500.0,0.00017999,2]
[408493810,1773751846297,-529.26945982,0.00017999,2]
[408493811,1773751846309,-577.0574034,0.00017999,2]
[408493812,1773751846475,-500.0,0.00017999,2]
[408493813,1773751846486,-500.0,0.00017999,2]
[408493814,1773751846495,-198.38986947,0.00017999,2]
[408493815,1773751846504,-500.0,0.00017999,2]
[408493816,1773751846514,-202.90638635,0.00017999,2]
[408493817,1773751846525,-585.07,0.00017999,2]
[408493819,1773751846535,-585.07,0.00017999,2]
[408493821,1773751846545,-585.07,0.00017999,2]
[408493822,1773751846554,-585.07,0.00017999,2]
[408493823,1773751846564,-585.07,0.00017999,2]
[408493824,1773751846576,-585.07,0.00017999,2]
[408493825,1773751846587,-585.07,0.00017999,2]
[408493826,1773751846599,-585.07,0.00017999,2]
[408493827,1773751846609,-585.16272417,0.00017999,2]
[408493828,1773751846618,-150.0,0.00017999,2]
[408493829,1773751846627,-150.0,0.00017999,2]
[408493830,1773751846636,-150.0,0.00017999,2]
[408493832,1773751846645,-150.0,0.00017999,2]
[408493833,1773751846655,-198.26654185,0.00017999,2]
[408493834,1773751846664,-174.94,0.00018,2]
[408493835,1773751846674,-1198.75633898,0.00018,2]
[408493836,1773751846684,-100307.96396649,0.00018,2]
[408493837,1773751846694,-309.07575307,0.00018,2]
[408493838,1773751846704,-351816.63866899,0.00018,2]
[408493839,1773751846713,-396567.80254783,0.00018,2]
[408493840,1773751846724,-557408.4378836,0.00018,2]
[408493841,1773751846734,-141057.53062143,0.00018,2]
[408493842,1773751846743,-543676.86913738,0.00018,2]
[408493843,1773751846787,-439.012276,0.00016438,2]
[408493844,1773751846798,-8979.74789623,0.00018,2]
[408493850,1773751847060,-439.012276,0.00016438,2]
[408493851,1773751847069,-439.012276,0.00016438,2]
[408493852,1773751847078,-439.012276,0.00016438,2]
[408493853,1773751847089,-439.012276,0.00016438,2]
[408493854,1773751847099,-439.012276,0.00016438,2]
[408493855,1773751847109,-1216.72318689,0.00016806,2]
[408493856,1773751847120,-867.76341262,0.00016806,2]
[408493857,1773751847140,-380.51340049,0.00016806,2]
[408493858,1773751847149,-439.012276,0.000169,2]
[408493859,1773751847158,-155.21874389,0.000169,2]
[408493860,1773751847179,-283.79353211,0.000169,2]
[408493861,1773751847188,-439.012276,0.00017213,2]
[408493862,1773751847197,-439.012276,0.00017213,2]
[408493863,1773751847206,-9398.71351784,0.00018,2]
[408493864,1773751847443,-151.0,0.00016231,2]
[408493865,1773751847452,-151.0,0.00016244,2]
[408493866,1773751847461,-439.012276,0.00016438,2]
[408493867,1773751847470,-439.012276,0.00016438,2]
[408493868,1773751847480,-439.012276,0.00016438,2]
[408493869,1773751847488,-439.012276,0.000169,2]
[408493870,1773751847498,-439.012266,0.00017213,2]
[408493871,1773751847507,-9286.65093,0.00018,2]
[408493872,1773751847518,-1390.0,0.00018,2]
[408493873,1773751847541,-59733.54674943,0.00018,2]
[408493874,1773751847552,-540.87885425,0.00018,2]
[408493875,1773751847563,-1159.86539298,0.00018,2]
[408493876,1773751847574,-1590.8452914,0.00018,2]
[408493878,1773751952099,2738.15,0.00032877,120]
[408494530,1773752349611,452.90453845,0.00032877,120]
[408494674,1773752458713,1044.28,0.00032877,120]
[408494689,1773752831727,238.0,0.00032877,120]
[408494690,1773752856867,211.0,0.00032877,120]
[408494691,1773752932081,170.0,0.00032877,120]
[408494692,1773752942182,6523.54048904,0.00032877,120]
[408494693,1773752979473,204.0,0.00032877,120]
[408494699,1773753031369,-166.66,0.00011347,2]
[408494700,1773753031379,-287.36947525,0.00011377,2]
[408494701,1773753031390,-706.49,0.00011377,2]
[408494702,1773753031425,-1056.1437645,0.00011377,2]
[408494703,1773753031435,-5000.0,0.00011406,2]
[408494704,1773753031444,-250.0,0.00011466,2]
[408494705,1773753031452,-166.66,0.00011586,2]
[408494706,1773753031461,-208.17,0.00011592,2]
[408494707,1773753031471,-250.0,0.00011647,2]
[408494708,1773753031480,-166.66,0.00011824,2]
[408494709,1773753031489,-1200.0,0.00011883,2]
[408494710,1773753031498,-1831.481014,0.00011884,2]
[408494711,1773753031507,-178.75815809,0.00011988,2]
[408494712,1773753031519,-121.24184191,0.00011988,2]
[408494713,1773753031528,-150.0,0.00011989,2]
[408494714,1773753031538,-300.0,0.00011989,2]
[408494715,1773753031547,-340.48521283,0.0001199,2]
[408494716,1773753031562,-21476.89567157,0.0001199,2]
[408494717,1773753031573,-101945.53363003,0.0001199,2]
[408494718,1773753031582,-166.66,0.00012063,2]
[408494719,1773753031591,-4109.15,0.00012087,2]
[408494720,1773753031604,-9999.99,0.00012087,2]
[408494721,1773753031614,-166.66,0.00012302,2]
[408494723,1773753031623,-2000.0,0.00012349,2]
[408494725,1773753031632,-500.0,0.00012391,2]
[408494726,1773753031644,-403.41029886,0.000124,2]
[408494727,1773753031653,-891.6402105,0.000124,2]
[408494728,1773753031662,-150.99,0.000124,2]
[408494729,1773753031672,-250.0,0.00012481,2]
[408494730,1773753031681,-5000.0,0.00012481,2]
[408494731,1773753031690,-5000.0,0.00012481,2]
[408494732,1773753031700,-500.0,0.00012485,2]
[408494733,1773753031709,-300.64020698,0.00012485,2]
[408494734,1773753031724,-309.31476264,0.000125,2]
[408494735,1773753031738,-2073.36107178,0.00012519,2]
[408494736,1773753031748,-2560.73300541,0.00012523,2]
[408494737,1773753031757,-166.66,0.00012541,2]
[408494738,1773753031767,-500.0,0.00012573,2]
[408494739,1773753031777,-221.41635946,0.00012575,2]
[408494740,1773753031787,-151.0,0.00012577,2]
[408494741,1773753031796,-151.0,0.00012577,2]
[408494742,1773753031806,-151.0,0.00012577,2]
[408494743,1773753031815,-151.0,0.00012577,2]